bitfinex/quotes_ETHUSD_20241217
["timestamp","ask_amount","ask_price","bid_price","bid_amount"]
[1734446673265,2.49634,4005.9,4004.6,0.6753]
[1734446673465,0.8078,4005.7,4003.7,0.6753]
[1734446673628,0.55,4006.1,4003.8,0.99055428]
[1734446673629,3.0,4005.9,4003.8,0.99055428]
[1734446673830,2.71184714,4005.8,4003.7,1.04987804]
[1734446674055,0.18421541,4005.7,4003.9,0.6753]
[1734446674215,0.18421541,4005.7,4004.1,0.6753]
[1734446674216,0.73421541,4005.7,4004.1,0.6753]
[1734446674416,0.55,4005.7,4004.3,0.6753]
[1734446674860,2.49595,4006.5,4004.3,0.6753]
[1734446675059,0.46809478,4006.4,4004.3,0.6753]
[1734446675216,0.18417433,4006.3,4004.4,0.02359531]
[1734446675415,0.03120386,4006.2,4004.5,0.6753]
[1734446675642,2.49595,4006.5,4004.5,0.6753]
[1734446675853,0.2153252,4006.4,4004.5,0.6753]
[1734446676056,3.1841179,4006.3,4004.5,0.6753]
[1734446676358,3.59186186,4006.2,4004.5,0.6753]
[1734446676545,0.8193,4005.6,4003.6,0.6753]
[1734446676746,3.0,4005.4,4003.6,0.6753]
[1734446676957,0.21533472,4005.3,4003.6,0.6753]
[1734446677114,0.67379819,4005.3,4003.6,0.6753]
[1734446677319,0.1841179,4005.2,4003.6,0.6753]
[1734446677544,0.03121683,4005.1,4003.6,0.6753]
[1734446677759,0.21533473,4005.1,4003.6,0.6753]
[1734446678464,0.55,4005.0,4003.6,0.6753]
[1734446678633,0.55,4004.8,4002.2,0.6753]
[1734446678839,0.64687255,4004.7,4002.3,0.42691185]
[1734446679164,2.49746,4004.1,4002.2,0.6753]
[1734446679462,2.49764,4003.8,4002.2,0.6753]
[1734446679763,2.49778,4003.6,4002.2,0.6753]
[1734446679969,2.5290482,4003.5,4002.2,0.6753]
[1734446680123,0.18416423,4003.4,4002.2,0.6753]
[1734446680322,0.03122822,4003.3,4002.2,0.6753]
[1734446680520,0.30254947,4003.3,4002.2,0.6753]
[1734446680717,0.18422078,4003.2,4002.2,0.6753]
[1734446681023,0.55,4003.1,4002.2,0.6753]
[1734446681418,0.55,4003.4,4002.2,0.6753]
[1734446681652,0.55,4003.2,4002.2,0.6753]
[1734446681853,0.18434447,4003.1,4002.2,0.6753]
[1734446682365,2.644,4005.1,4002.2,0.6753]
[1734446682366,2.49754,4004.0,4002.2,0.6753]
[1734446682665,1.06619283,4003.9,4002.2,0.6753]
[1734446682969,0.55,4003.7,4002.2,0.6753]
[1734446683273,0.8193,4004.2,4002.2,0.69893915]
[1734446683428,2.49753,4004.0,4002.2,0.6753]
[1734446683626,0.18469217,4003.9,4002.3,3.0]
[1734446683945,3.59381845,4005.6,4002.4,0.69892954]
[1734446683946,0.94578751,4004.8,4002.4,0.69892954]
[1734446684149,0.18469679,4004.7,4002.5,0.7667326]
[1734446684339,0.18469679,4004.6,4002.6,0.02362288]
[1734446684536,0.94578751,4004.8,4002.7,0.6753]
[1734446684537,0.18469679,4004.5,4002.7,0.6753]
[1734446684755,0.18469679,4004.4,4002.7,0.6753]
[1734446684952,0.18469679,4004.3,4002.7,0.6753]
[1734446685166,0.9770075,4004.8,4002.7,0.82186552]
[1734446685167,0.18469679,4004.2,4002.7,0.82186552]
[1734446685367,0.18469679,4004.1,4002.7,0.82186552]
[1734446685531,0.55,4004.7,4002.8,0.02362663]
[1734446685733,0.18487726,4004.6,4002.9,3.0]
[1734446685938,0.8193,4005.8,4003.0,0.39818813]
[1734446686138,0.18485559,4005.7,4003.5,3.0]
[1734446686361,0.18485559,4005.6,4004.1,3.0]
[1734446686578,0.8193,4006.4,4004.2,0.6753]
[1734446686579,0.18485559,4005.5,4004.2,0.6753]
[1734446686733,0.8193,4006.4,4004.2,0.6753]
[1734446686734,0.0312092,4006.0,4004.2,0.6753]
[1734446686940,0.18492795,4005.9,4004.2,0.6753]
[1734446687180,2.52731919,4006.3,4004.3,0.72691185]
[1734446687379,0.03120919,4006.3,4004.3,0.72691185]
[1734446687537,0.1849548,4006.2,4004.3,0.72691185]
[1734446687737,0.03120773,4006.1,4004.4,0.6753]
[1734446687938,0.12527691,4006.6,4004.4,0.6753]
[1734446687939,0.1849548,4006.0,4004.4,0.6753]
[1734446688248,0.1849548,4005.9,4004.4,0.6753]
[1734446688447,0.1849548,4005.8,4004.4,0.6753]
[1734446688668,0.1849548,4006.4,4004.4,0.6753]
[1734446688839,2.49645,4005.7,4004.4,0.6753]
[1734446689043,0.21616653,4005.6,4004.4,0.6753]
[1734446689254,0.1849548,4005.5,4004.4,0.6753]
[1734446689493,0.1849548,4005.4,4004.4,0.6753]
[1734446689644,0.1849548,4005.3,4004.4,0.6753]
[1734446689840,0.1849548,4005.2,4003.2,0.02361017]
[1734446690093,0.8201,4005.0,4003.2,0.69891006]
[1734446690391,3.03208728,4004.9,4003.2,0.6753]
[1734446690539,0.1849548,4004.8,4003.2,0.6753]
[1734446690736,0.1849548,4004.7,4003.2,0.6753]
[1734446690936,0.7349548,4004.6,4003.2,0.6753]
[1734446691141,0.1849548,4004.5,4003.3,0.0236253]
[1734446691342,0.1849548,4004.4,4003.2,0.6753]
[1734446691579,0.1849548,4004.3,4003.2,0.6753]
[1734446691887,0.55,4004.1,4003.2,0.6753]
[1734446692093,0.55,4003.9,4003.2,0.6753]
[1734446692390,0.1849548,4003.8,4003.2,0.6753]
[1734446692779,0.1849548,4003.7,4003.2,0.6753]
[1734446692950,0.1849548,4003.6,4003.2,0.6753]
[1734446693151,2.49734,4004.3,4003.2,0.6753]
[1734446693152,3.03122388,4004.2,4003.2,0.6753]
[1734446693364,1.34315996,4004.1,4003.2,0.6753]
[1734446693596,0.03122491,4004.0,4002.6,0.6753]
[1734446693823,1.15785639,4004.1,4002.6,0.6753]
[1734446693824,0.55,4003.9,4002.6,0.6753]
[1734446693952,0.18531014,4003.8,4002.6,0.6753]
[1734446694153,0.18531014,4003.7,4002.7,0.02363076]
[1734446694456,0.125506,4004.9,4002.7,0.02363076]
[1734446694457,0.125506,4004.9,4002.8,0.6753]
[1734446694659,0.18537947,4004.8,4002.9,0.37457804]
[1734446694974,0.18537947,4004.7,4003.0,0.6753]
[1734446695166,0.18537947,4004.6,4003.0,0.6753]
[1734446695495,0.18537947,4004.5,4003.0,0.6753]
[1734446695665,0.15672479,4004.9,4003.0,0.6753]
[1734446695666,0.18537947,4004.4,4003.0,0.6753]
[1734446695865,0.18537947,4004.3,4003.0,1.04987804]
[1734446696072,0.55,4004.8,4003.1,0.37457804]
[1734446696268,0.55,4004.6,4003.1,0.37457804]
[1734446696484,0.55,4004.8,4003.1,0.37457804]
[1734446696485,0.18548384,4004.5,4003.1,0.37457804]
[1734446696700,0.55,4004.6,4003.1,0.37457804]
[1734446696903,0.55,4004.6,4003.0,0.6753]
[1734446697201,0.18561406,4004.5,4003.0,0.6753]
[1734446697387,0.18561406,4004.4,4003.0,0.6753]
[1734446697628,0.18561406,4004.3,4003.0,0.6753]
[1734446697776,0.18561406,4004.2,4003.0,0.6753]
[1734446698107,0.18561406,4004.1,4003.0,0.6753]
[1734446698401,0.18561406,4004.0,4003.0,0.6753]
[1734446698568,0.18561406,4003.9,4003.0,0.6753]
[1734446698768,0.55,4004.6,4003.0,0.6753]
[1734446698969,0.18571563,4004.5,4003.0,0.6753]
[1734446699192,0.18571563,4004.5,4003.0,1.04987804]
[1734446699398,0.7814,4006.1,4003.6,3.0]
[1734446699702,0.2168267,4006.0,4003.8,0.6753]
[1734446699901,0.18561639,4005.9,4004.0,0.6753]
[1734446700142,0.03121014,4005.8,4004.0,1.04987804]
[1734446700258,2.68210155,4005.7,4004.0,0.6753]
[1734446700460,0.21684635,4005.6,4004.0,0.6753]
[1734446700669,0.45696319,4005.5,4004.0,0.6753]
[1734446700901,0.21684636,4005.4,4004.0,0.6753]
[1734446701105,0.18563155,4005.3,4004.0,0.6753]
[1734446701308,0.21684636,4005.2,4004.0,0.6753]
[1734446701462,0.73563155,4005.1,4004.0,0.6753]
[1734446701663,0.55,4004.9,4004.0,0.6753]
[1734446701977,0.21684941,4004.8,4004.0,0.6753]
[1734446702188,0.18563155,4004.7,4004.0,0.6753]
[1734446702396,0.68168498,4004.9,4004.0,0.6753]
[1734446702397,0.18563155,4004.6,4004.0,0.6753]
[1734446702707,0.18563155,4004.6,4002.9,1.03674333]
[1734446702708,0.18563155,4004.5,4003.5,0.6753]
[1734446702873,3.73563155,4004.4,4003.5,0.6753]
[1734446703203,0.55,4004.2,4003.5,0.6753]
[1734446703420,0.55,4004.4,4003.5,0.6753]
[1734446703421,0.18563155,4004.1,4003.5,0.6753]
[1734446703563,1.85711526,4007.1,4003.6,0.374496]
[1734446703564,0.75,4006.0,4003.6,0.374496]
[1734446703765,0.21714569,4005.9,4003.7,0.6753]
[1734446704064,0.75,4006.0,4003.3,3.59381845]
[1734446704065,0.18593273,4005.8,4004.1,3.0]
[1734446704402,0.18593273,4005.7,4005.0,3.59381845]
[1734446704614,1.02652356,4006.8,4005.1,3.69889004]
[1734446704758,0.21705265,4006.7,4005.2,1.02596585]
[1734446704965,0.21705399,4006.6,4005.2,0.6753]
[1734446705290,0.21705399,4006.6,4005.1,3.0]
[1734446705291,0.18585273,4006.5,4005.5,3.59381845]
[1734446705460,1.02652356,4006.8,4005.7,0.6753]
[1734446705660,1.02652356,4006.8,4006.0,3.59381845]
[1734446705895,1.02652356,4006.8,4006.2,0.6753]
[1734446706413,0.03119939,4006.7,4006.2,0.6753]
[1734446706697,0.03119939,4006.7,4004.9,0.6753]
[1734446706698,0.23962404,4006.7,4004.9,0.6753]
[1734446706902,0.18551434,4006.6,4004.9,0.6753]
[1734446707104,0.0312053,4006.5,4004.9,0.6753]
[1734446707312,0.18551434,4006.4,4004.9,0.6753]
[1734446707607,1.55756816,4007.5,4005.3,3.59381845]
[1734446707827,0.55,4007.3,4005.5,0.6753]
[1734446708032,0.18542614,4007.2,4005.7,0.6753]
[1734446708197,0.18542614,4007.2,4005.9,0.6753]
[1734446708533,1.58837877,4007.3,4005.9,0.6753]
[1734446708534,1.03837877,4007.3,4006.1,0.6753]
[1734446709326,0.21631951,4007.2,4006.1,0.6753]
[1734446709526,0.20046983,4007.1,4006.1,0.6753]
[1734446709728,0.21632675,4007.0,4004.9,0.6753]
[1734446710023,0.18512484,4007.0,4004.9,0.6753]
[1734446710184,0.55,4006.9,4004.9,0.6753]
[1734446710382,1.03837877,4007.3,4005.1,0.6753]
[1734446710383,0.18512484,4006.8,4005.1,0.6753]
[1734446710579,1.03837877,4007.3,4005.3,0.6753]
[1734446710783,0.18515746,4007.2,4005.5,0.6753]
[1734446711021,1.03837877,4007.3,4005.7,0.6753]
[1734446711579,1.03837877,4007.3,4005.7,0.69887416]
[1734446711785,1.03837877,4007.3,4005.8,0.6753]
[1734446712199,1.03837877,4007.3,4006.5,3.59381845]
[1734446712440,1.03837877,4007.3,4006.7,0.6753]
[1734446712638,1.03837877,4007.3,4006.8,0.75283284]
[1734446712927,1.03837877,4007.3,4006.8,0.72926857]
[1734446713304,0.005,4008.1,4006.7,0.6753]
[1734446713631,0.03118988,4007.6,4006.7,0.6753]
[1734446713782,0.75,4008.0,4006.1,0.6753]
[1734446713981,0.21615388,4007.9,4006.1,0.6753]
[1734446714346,0.18495821,4007.9,4006.1,0.6753]
[1734446714627,0.18495821,4007.8,4006.3,0.6753]
[1734446714936,0.005,4008.1,4006.3,0.6753]
[1734446715088,0.56,4008.1,4006.3,0.6753]
[1734446715449,0.18486758,4008.0,4006.3,0.6753]
[1734446715624,0.78119272,4007.9,4006.3,0.6753]
[1734446715786,0.31899235,4007.8,4004.8,1.90583451]
[1734446715985,3.0,4007.4,4005.1,0.6753]
[1734446716318,2.49607,4006.3,4005.1,0.6753]
[1734446716561,0.21608305,4006.2,4005.1,0.6753]
[1734446716755,2.49639,4005.8,4004.8,1.55516866]
[1734446716960,0.21608475,4005.7,4004.8,1.55516866]
[1734446717171,2.49679,4005.2,4004.8,1.55516866]
[1734446717355,0.18487308,4005.1,4004.8,1.55516866]
[1734446717562,0.55,4005.1,4004.8,1.55516866]
[1734446717743,0.73487308,4005.1,4004.8,1.55516866]
[1734446717930,2.52770252,4005.7,4004.8,1.55516866]
[1734446718138,3.45274152,4006.1,4004.8,1.55516866]
[1734446718139,0.18499909,4005.6,4004.8,1.55516866]
[1734446718381,0.18499909,4005.5,4004.8,2.23046866]
[1734446718674,0.8317,4006.6,4004.8,2.23046866]
[1734446718884,0.21617403,4006.5,4004.8,2.23046866]
[1734446719080,0.18496895,4006.4,4004.9,3.0]
[1734446719372,0.8317,4006.2,4004.8,2.23046866]
[1734446719542,0.21618054,4006.1,4004.8,2.23046866]
[1734446719743,0.18496895,4006.1,4004.9,3.0]
[1734446719947,0.12518787,4006.8,4005.1,0.02359869]
[1734446720275,0.18495073,4006.7,4005.8,3.59381845]
[1734446720471,0.01,4008.1,4006.0,0.6753]
[1734446720672,0.04119588,4008.1,4006.0,0.6753]
[1734446720882,2.53614588,4008.1,4006.0,0.6753]
[1734446721051,0.01,4008.1,4006.2,0.6753]
[1734446721252,0.18488948,4008.0,4006.4,0.6753]
[1734446721452,0.01,4008.1,4006.4,0.6753]
[1734446721669,0.01,4008.1,4006.6,0.6753]
[1734446721877,0.01,4008.1,4007.1,3.6753]
[1734446722084,0.01,4008.1,4007.1,0.6753]
[1734446724913,0.01,4008.1,4007.1,3.0]
[1734446725127,0.01,4008.1,4007.2,0.35753206]
[1734446725281,0.01,4008.1,4007.8,0.6753]
[1734446726312,0.01,4008.1,4006.7,0.12325027]
[1734446726313,0.01,4008.1,4006.8,0.6753]
[1734446726467,0.04118947,4008.1,4006.8,0.6753]
[1734446726662,0.04118947,4008.1,4004.6,2.32339449]
[1734446726663,2.49507,4007.9,4005.3,0.6753]
[1734446726880,4.42551845,4008.0,4005.3,0.6753]
[1734446726881,0.8317,4007.0,4005.3,0.6753]
[1734446727077,0.21587166,4006.9,4005.3,0.6753]
[1734446727292,0.58120537,4006.9,4005.3,0.6753]
[1734446727463,0.18488872,4006.8,4005.3,0.6753]
[1734446727665,0.03120514,4006.7,4005.3,0.6753]
[1734446727865,2.49602,4006.4,4005.3,0.6753]
[1734446728108,0.74098453,4006.7,4005.3,0.6753]
[1734446728109,0.21615063,4006.3,4005.3,0.6753]
[1734446728309,0.55,4006.2,4005.3,0.6753]
[1734446728478,0.55,4006.9,4005.4,0.02359294]
[1734446728804,0.03120515,4006.7,4005.3,0.6753]
[1734446729024,0.13162396,4006.6,4005.3,0.6753]
[1734446729307,2.71219264,4006.5,4005.3,0.6753]
[1734446729612,0.18503447,4006.4,4005.3,0.6753]
[1734446729814,2.49656,4005.5,4004.4,0.6753]
[1734446729997,0.03121444,4005.5,4004.4,0.6753]
[1734446730577,2.90611142,4005.4,4004.4,0.6753]
[1734446730791,0.21636553,4005.3,4004.4,0.6753]
[1734446730981,0.76636553,4005.3,4004.4,0.6753]
[1734446731186,0.18514976,4005.2,4003.3,0.12510629]
[1734446731395,0.58121749,4005.1,4003.4,0.6753]
[1734446731659,0.31678649,4005.0,4003.4,0.6753]
[1734446731779,0.21637345,4004.9,4003.4,0.6753]
[1734446731963,0.18514976,4004.9,4003.4,0.6753]
[1734446732169,2.497,4004.8,4003.4,0.6753]
[1734446732368,2.49744,4004.1,4003.4,0.6753]
[1734446732615,0.03122491,4004.0,4002.8,0.6753]
[1734446732769,0.18519921,4004.3,4002.9,0.02363431]
[1734446733107,0.21642364,4004.2,4002.8,0.6753]
[1734446733319,2.49757,4003.9,4002.8,0.6753]
[1734446733619,0.18519921,4003.8,4002.8,0.6753]
[1734446733770,3.12533071,4004.7,4002.8,0.6753]
[1734446734118,0.55,4003.7,4003.0,0.6753]
[1734446734408,3.0,4005.4,4003.0,1.025904]
[1734446734565,0.03121689,4005.3,4003.0,1.025904]
[1734446734919,3.0,4005.1,4003.1,0.43846384]
[1734446735080,0.55278169,4005.2,4003.0,0.6753]
[1734446735081,2.49702,4004.8,4003.0,0.6753]
[1734446735281,0.03122321,4004.7,4003.0,0.6753]
[1734446735786,0.55278169,4005.2,4003.0,0.6753]
[1734446736108,0.55,4004.5,4003.0,0.6753]
[1734446736278,0.55,4004.5,4003.1,0.36753]
[1734446736481,0.03121865,4004.4,4003.0,0.6753]
[1734446736728,2.49684,4005.1,4003.0,0.6753]
[1734446736925,2.49733,4004.3,4003.0,0.6753]
[1734446737222,0.0312253,4004.2,4003.0,0.6753]
[1734446737387,0.5812253,4004.2,4003.0,0.6753]
[1734446737587,0.55,4004.0,4003.0,0.6753]
[1734446737790,0.03122673,4003.9,4003.0,0.6753]
[1734446737992,0.7501,4005.1,4003.1,0.02363385]
[1734446738227,0.03121839,4005.0,4003.0,0.6753]
[1734446738428,0.03121839,4005.0,4003.0,3.6753]
[1734446738580,0.03121858,4005.3,4003.2,0.6753]
[1734446739223,2.49701,4004.8,4003.2,0.6753]
[1734446739425,0.7501,4004.5,4003.2,0.6753]
[1734446739729,0.03122593,4004.4,4003.2,0.6753]
[1734446739913,0.03122347,4004.3,4003.2,0.6753]
[1734446740299,0.13313235,4004.2,4003.2,0.6753]
[1734446740893,0.16435743,4004.2,4003.2,0.6753]
[1734446741094,0.55,4004.1,4003.2,0.6753]
[1734446741317,0.03122662,4004.0,4001.7,0.6753]
[1734446741531,2.49784,4003.5,4001.7,0.6753]
[1734446741732,0.28101495,4003.4,4001.7,0.6753]
[1734446741933,0.55,4004.1,4001.9,0.6753]
[1734446742237,0.55,4003.3,4001.9,0.6753]
[1734446742869,0.55,4004.1,4002.2,3.6753]
[1734446743001,0.0312244,4004.0,4002.3,0.6753]
[1734446743196,0.0312244,4004.0,4002.4,0.72691185]
[1734446743698,2.49768,4003.8,4002.3,0.6753]
[1734446743898,0.03122992,4003.7,4002.3,0.6753]
[1734446744214,0.55,4003.6,4002.3,0.6753]
[1734446744402,0.0312316,4003.5,4002.3,0.6753]
[1734446744602,1.3001,4003.4,4002.3,0.6753]
[1734446744829,2.49847,4002.5,4001.6,0.6753]
[1734446745033,0.21936635,4003.3,4001.1,0.6753]
[1734446745034,0.03123843,4002.4,4001.1,0.6753]
[1734446745222,0.7501,4002.3,4001.1,0.6753]
[1734446745437,0.03124246,4002.2,4001.1,0.6753]
[1734446745617,2.83213316,4003.3,4001.2,0.02366662]
[1734446745618,0.93823316,4003.3,4001.2,0.02366662]
[1734446745925,0.93823316,4003.3,4001.1,0.6753]
[1734446745926,2.49822,4002.9,4001.1,0.6753]
[1734446746138,0.031237,4002.8,4001.1,0.6753]
[1734446746440,3.0,4002.7,4001.1,0.6753]
[1734446746645,0.03123877,4002.6,4001.1,0.6753]
[1734446746858,3.0,4002.4,4001.1,0.6753]
[1734446747022,0.3343657,4002.3,4001.1,0.6753]
[1734446747225,3.7779,4002.2,4001.1,0.6753]
[1734446747424,3.7779,4002.2,3998.8,1.03191656]
[1734446747425,2.49886,4001.9,4000.0,0.6753]
[1734446747757,0.55,4001.5,4000.0,0.6753]
[1734446747973,0.03124561,4001.4,4000.0,0.6753]
[1734446748162,0.55,4001.5,4000.5,3.59381845]
[1734446748455,0.58124203,4002.1,4000.7,0.6753]
[1734446748662,0.03124373,4002.0,4000.7,0.6753]
[1734446748810,0.55,4002.1,4000.7,0.6753]
[1734446749417,0.7779,4002.9,4000.7,0.6753]
[1734446749418,0.03123862,4002.8,4000.7,0.6753]
[1734446749855,0.12235793,4002.5,4000.7,0.6753]
[1734446750011,3.03124347,4002.4,4000.7,0.6753]
[1734446750359,0.56520414,4002.3,4000.7,0.6753]
[1734446750525,0.03124347,4002.2,4000.7,0.6753]
[1734446750734,0.55,4002.2,4000.7,0.6753]
[1734446750933,0.55,4002.2,4000.8,0.02366198]
[1734446751129,0.55,4002.2,4000.9,0.6753]
[1734446751330,0.55,4002.4,4000.9,0.6753]
[1734446751531,0.55,4002.4,4001.3,0.6753]
[1734446751744,0.55,4002.4,4001.2,3.0]
[1734446751745,0.55,4002.4,4001.4,0.72691185]
[1734446751950,0.998393,4004.1,4002.1,3.59381845]
[1734446752125,1.81627877,4004.4,4002.3,0.6753]
[1734446752321,0.03122689,4004.3,4002.3,0.6753]
[1734446752565,2.49744,4004.1,4002.3,0.6753]
[1734446752767,0.51116872,4004.0,4002.3,0.6753]
[1734446752966,4.37171845,4003.9,4001.7,0.6753]
[1734446753119,0.03123607,4003.8,4001.7,0.6753]
[1734446753320,2.49775,4003.6,4001.7,0.6753]
[1734446753569,2.49795,4003.3,4001.7,0.6753]
[1734446753753,3.03123715,4003.2,4001.7,0.6753]
[1734446753949,0.30312372,4003.1,4001.7,0.6753]
[1734446754165,0.58123447,4003.0,4001.7,0.6753]
[1734446754317,0.55,4003.0,4001.7,0.6753]
[1734446754524,0.55,4003.0,4001.9,3.6753]
[1734446754768,0.03123186,4003.8,4001.9,3.6753]
[1734446754933,0.03123186,4003.8,4001.9,0.6753]
[1734446754934,2.49779,4003.6,4001.9,0.6753]
[1734446755139,0.28413461,4003.5,4001.9,0.6753]
[1734446755334,0.03123242,4003.5,4001.9,0.6753]
[1734446755727,0.7772,4003.4,4001.9,0.6753]
[1734446755922,0.03123561,4003.3,4001.9,0.6753]
[1734446756144,0.58123561,4003.3,4001.9,0.6753]
[1734446756323,0.90443827,4004.0,4001.9,0.6753]
[1734446756551,0.03122843,4003.9,4002.1,0.6753]
[1734446756961,2.49781,4003.5,4002.1,0.6753]
[1734446757141,0.03123508,4003.4,4002.1,0.6753]
[1734446757338,0.7772,4003.3,4001.6,0.6753]
[1734446757653,0.03123805,4003.2,4001.6,0.6753]
[1734446757853,0.55,4003.0,4001.6,0.6753]
[1734446758080,0.03123278,4002.9,4001.6,0.6753]
[1734446758286,0.55,4003.0,4001.6,0.6753]
[1734446758782,0.0312327,4002.9,4001.6,0.6753]
[1734446759143,0.55,4003.0,4001.6,0.6753]
[1734446759355,0.55,4003.2,4001.6,0.6753]
[1734446759773,0.55,4003.6,4001.6,0.6753]
[1734446760040,2.49803,4003.2,4001.6,0.6753]
[1734446760240,0.71371826,4003.5,4001.6,0.6753]
[1734446760241,0.682484,4003.5,4001.7,0.02129227]
[1734446760472,0.55,4003.6,4001.8,0.6753]
[1734446760682,2.4338,4005.1,4001.8,0.6753]
[1734446760683,0.55,4003.4,4002.9,3.0]
[1734446760879,3.59381845,4006.0,4003.0,0.02327121]
[1734446760880,0.03122183,4005.8,4003.0,0.02327121]
[1734446761083,0.03122183,4005.8,4002.9,3.0]
[1734446761084,0.998112,4005.2,4003.1,0.6753]
[1734446761266,0.12376305,4004.9,4003.1,0.6753]
[1734446761466,2.49725,4004.4,4003.1,0.6753]
[1734446761672,0.0312267,4004.3,4003.1,0.6753]
[1734446761866,2.5285467,4004.3,4003.1,0.6753]
[1734446762082,0.0312267,4004.3,4003.1,0.6753]
[1734446762601,0.58122684,4004.2,4001.7,3.6753]
[1734446762782,2.49772,4003.7,4001.7,3.6753]
[1734446763100,0.41312268,4004.1,4001.7,0.6753]
[1734446763397,0.55,4003.6,4001.7,0.6753]
[1734446763598,0.03123211,4003.5,4001.7,0.6753]
[1734446764024,3.0,4003.4,4001.7,0.6753]
[1734446764308,2.49856,4002.4,3999.9,0.6753]
[1734446764463,5.498,4003.2,3999.9,0.6753]
[1734446764464,2.52982115,4002.3,3999.9,0.6753]
[1734446764659,3.25298212,4002.2,4000.1,0.6753]
[1734446764888,0.03124204,4002.1,4000.1,0.6753]
[1734446765705,0.58124204,4002.1,4000.1,0.6753]
[1734446765907,0.03124312,4002.0,4000.1,0.6753]
[1734446766265,0.55,4002.0,4000.4,3.59381845]
[1734446766495,0.03123915,4001.9,4000.6,0.6753]
[1734446766695,0.58123915,4001.9,4000.6,0.6753]
[1734446766960,0.55,4001.9,4000.6,0.6753]
[1734446767856,4.09381845,4004.2,4000.6,0.6753]
[1734446768082,0.86363795,4004.1,4001.6,3.59381845]
[1734446768311,0.8324,4004.1,4001.8,0.6753]
[1734446768511,0.03122762,4004.0,4002.0,0.6753]
[1734446768859,0.86362806,4004.6,4002.0,0.6753]
[1734446769056,0.03122804,4004.4,4002.0,0.6753]
[1734446769559,0.58122804,4004.4,4002.0,0.6753]
[1734446769774,0.12240929,4003.9,4002.0,0.6753]
[1734446769972,0.55,4003.8,4002.0,0.6753]
[1734446770219,1.03837877,4004.5,4002.3,3.0]
[1734446770363,1.03837877,4004.5,4002.9,3.0]
[1734446770558,1.03837877,4004.5,4003.0,0.6753]
[1734446770804,1.03837877,4004.5,4003.2,0.6753]
[1734446771309,1.03837877,4004.5,4003.6,0.6753]
[1734446771518,1.03837877,4004.5,4004.1,3.0]
[1734446771682,0.998098,4005.3,4004.3,0.6753]
[1734446771997,1.03837877,4006.9,4004.5,0.6753]
[1734446771998,0.03121185,4005.2,4004.5,0.6753]
[1734446772203,0.03121641,4005.5,4004.5,0.6753]
[1734446772510,0.25277064,4005.4,4004.5,0.6753]
[1734446772723,0.03122032,4005.3,4003.2,0.6753]
[1734446772863,2.49676,4005.2,4003.2,0.6753]
[1734446773097,0.03122013,4005.1,4003.2,0.6753]
[1734446773278,0.12169797,4006.0,4003.6,0.6753]
[1734446773593,0.03121342,4005.9,4004.0,3.6753]
[1734446773787,0.52953316,4005.9,4004.0,0.6753]
[1734446774105,3.0,4005.8,4004.0,0.6753]
[1734446774290,2.49657,4005.5,4004.0,0.6753]
[1734446774493,0.03121834,4005.4,4004.0,0.6753]
[1734446774694,2.52790834,4005.4,4004.0,0.6753]
[1734446774899,0.7905,4005.1,4004.0,0.6753]
[1734446775067,0.03122451,4005.0,4003.5,0.6753]
[1734446775260,0.55,4004.9,4003.5,0.6753]
[1734446775460,0.55,4004.9,4002.2,0.12200626]
[1734446775461,0.55,4004.9,4003.9,3.59381845]
[1734446775667,0.55,4004.9,4004.4,3.59381845]
[1734446775892,0.03121129,4006.3,4004.6,0.6753]
[1734446776109,0.13162396,4006.6,4004.4,3.59381845]
[1734446776110,0.12275454,4006.5,4004.8,0.6753]
[1734446776298,0.15396547,4006.5,4004.8,0.6753]
[1734446776570,0.15396547,4006.5,4003.9,3.0]
[1734446776571,0.7611,4005.8,4003.9,3.0]
[1734446776774,2.49657,4005.5,4004.0,0.6753]
[1734446777004,0.2839963,4005.4,4004.0,0.6753]
[1734446777204,0.03121754,4005.4,4004.0,0.6753]
[1734446777814,0.55,4005.5,4004.0,0.6753]
[1734446778020,0.03121714,4006.2,4004.1,0.6753]
[1734446778448,0.55,4006.4,4004.4,0.6753]
[1734446778753,0.03120822,4006.3,4004.5,0.6753]
[1734446779043,0.03120822,4006.3,4004.5,1.40221185]
[1734446779448,2.49637,4005.9,4004.5,0.6753]
[1734446779648,2.52761473,4005.8,4004.5,0.6753]
[1734446779836,2.49659,4005.5,4004.5,0.6753]
[1734446780037,0.7611,4005.8,4004.5,0.6753]
[1734446780222,0.55,4006.4,4004.5,0.6753]
[1734446780223,0.55,4005.7,4004.5,0.6753]
[1734446780548,2.49657,4005.5,4004.5,0.6753]
[1734446780704,2.49676,4005.2,4004.5,0.6753]
[1734446780906,0.03121809,4005.1,4004.0,8.1753]
[1734446781100,0.03122011,4005.1,4004.0,8.1753]
[1734446781314,0.58122011,4005.1,4004.0,8.1753]
[1734446781715,0.03122011,4005.1,4004.0,8.1753]
[1734446782120,0.55,4004.9,4004.0,8.1753]
[1734446782319,0.03121947,4004.8,4004.0,8.1753]
[1734446782514,0.03121947,4004.8,4004.0,7.5]
[1734446782752,3.0,4004.7,4004.0,7.5]
[1734446782920,0.03121947,4004.8,4004.0,7.5]
[1734446782921,3.0,4004.5,4004.0,7.5]
[1734446783246,0.55,4004.9,4004.1,0.6753]
[1734446783605,3.11583979,4005.7,4004.6,0.6753]
[1734446783606,1.03861326,4005.7,4004.6,0.6753]
[1734446784154,0.12637156,4006.4,4004.6,0.6753]
[1734446784448,0.03120945,4006.3,4004.6,0.6753]
[1734446784654,0.03121072,4006.2,4004.6,0.6753]
[1734446784850,0.36515263,4006.1,4004.6,0.6753]
[1734446785038,0.03121178,4006.0,4004.6,0.6753]
[1734446785752,0.55,4005.6,4004.6,0.6753]
[1734446785955,0.03121854,4005.5,4004.1,0.6753]
[1734446786137,0.03121854,4005.5,4004.0,7.5]
[1734446786340,0.13423185,4005.4,4004.0,7.5]
[1734446786639,0.0312183,4005.3,4004.0,7.5]
[1734446786805,2.49675,4005.2,4004.0,7.5]